bitfinex-derivatives/quotes_SOLF0:USTF0_20260116
["timestamp","ask_amount","ask_price","bid_price","bid_amount"]
[1768527573293,3.27056994,142.52,142.47,9.62968964]
[1768527579994,3.27056994,142.52,142.47,3.31118964]
[1768527581092,3.27056994,142.52,142.45,3.31118964]
[1768527581299,3.27056994,142.51,142.45,3.31118964]
[1768527587087,3.27056994,142.51,142.45,9.63068964]
[1768527588400,3.27056994,142.51,142.46,3.31118964]
[1768527589290,3.27056994,142.51,142.45,6.3195]
[1768527589491,3.27056994,142.51,142.44,3.31118964]
[1768527589702,3.27056994,142.5,142.44,3.31118964]
[1768527590801,3.27056994,142.5,142.44,9.63108964]
[1768527593993,9.58796994,142.5,142.44,3.31118964]
[1768527604914,12.93668423,142.52,142.45,3.07473669]
[1768527605813,12.93668423,142.52,142.46,3.07473669]
[1768527608216,3.17069605,142.51,142.46,3.07473669]
[1768527608519,9.48769605,142.51,142.46,3.07473669]
[1768527612320,3.17069605,142.51,142.46,3.07473669]
[1768527615635,9.48769605,142.51,142.44,3.07473669]
[1768527615832,3.17069605,142.5,142.42,3.07473669]
[1768527616133,3.17069605,142.48,142.42,3.07473669]
[1768527616627,3.17069605,142.48,142.42,9.39553669]
[1768527617027,3.44928818,142.49,142.42,3.07473669]
[1768527617232,3.44928818,142.49,142.43,9.39513669]
[1768527620737,12.93778423,142.49,142.43,3.07473669]
[1768527620940,3.17069605,142.48,142.41,9.53973053]
[1768527621635,3.17069605,142.48,142.42,3.21883053]
[1768527621940,3.25122089,142.47,142.39,9.54063053]
[1768527622937,9.57032089,142.46,142.39,9.54063053]
[1768527627544,3.34369762,142.45,142.39,9.54063053]
[1768527627846,3.34369762,142.45,142.39,3.21883053]
[1768527629752,3.34369762,142.45,142.39,9.54093053]
[1768527630139,6.3191,142.46,142.4,3.21607854]
[1768527630851,9.66279762,142.46,142.4,3.21607854]
[1768527631461,3.34369762,142.46,142.4,3.21607854]
[1768527631660,9.66209762,142.48,142.41,3.21607854]
[1768527632349,3.34369762,142.48,142.42,3.21607854]
[1768527632548,9.66139762,142.5,142.42,3.21607854]
[1768527633353,11.8699627,142.5,142.42,3.21607854]
[1768527633554,11.8699627,142.5,142.44,3.21607854]
[1768527636854,3.34369762,142.49,142.43,6.3204]
[1768527637055,3.34369762,142.49,142.42,3.21607854]
[1768527637256,2.20856508,142.48,142.42,3.21607854]
[1768527637954,5.5522627,142.48,142.42,3.21607854]
[1768527638551,5.5522627,142.48,142.42,9.53687854]
[1768527638756,3.34369762,142.45,142.4,3.21607854]
[1768527642965,2.20856508,142.44,142.37,6.3228]
[1768527643161,3.34369762,142.43,142.37,9.53887854]
[1768527654671,3.34369762,142.43,142.38,3.26208145]
[1768527658279,6.32,142.44,142.38,3.26208145]
[1768527658466,2.20856508,142.44,142.39,3.26208145]
[1768527658662,8.52806508,142.46,142.39,3.26208145]
[1768527659170,11.77048217,142.46,142.39,3.26208145]
[1768527659868,11.77048217,142.46,142.4,3.26208145]
[1768527675579,3.24241709,142.45,142.4,3.26208145]
[1768527679981,3.24241709,142.45,142.4,9.58378145]
[1768527682287,2.20856508,142.46,142.41,9.45779621]
[1768527682577,2.20856508,142.48,142.42,3.13659621]
[1768527682777,5.37295634,142.49,142.42,3.13659621]
[1768527683988,5.37295634,142.49,142.43,6.3203]
[1768527687286,3.26714731,142.48,142.43,6.3203]
[1768527693285,3.26714731,142.48,142.42,3.13659621]
[1768527694794,3.26714731,142.48,142.42,9.45739621]
[1768527699903,9.58554731,142.48,142.42,3.13659621]
[1768527704304,3.26714731,142.48,142.42,9.45739621]
[1768527709803,3.26714731,142.47,142.42,3.13659621]
[1768527712004,3.26714731,142.47,142.41,6.3212]
[1768527713109,3.26714731,142.47,142.41,9.37912542]
[1768527717802,3.26714731,142.47,142.42,3.05792542]
[1768527726922,3.1273637,142.46,142.4,3.05792542]
[1768527727119,3.1273637,142.46,142.35,3.05792542]
[1768527727418,3.1273637,142.43,142.36,3.05792542]
[1768527728215,9.4485637,142.42,142.36,3.05792542]
[1768527732923,9.4487637,142.41,142.36,3.05792542]
[1768527734718,9.4487637,142.41,142.34,3.05792542]
[1768527734719,9.4491637,142.4,142.34,3.05792542]
[1768527741026,9.4491637,142.4,142.3,3.13096311]
[1768527741027,3.07376926,142.36,142.3,3.13096311]
[1768527742126,6.52491684,142.39,142.3,3.13096311]
[1768527743824,12.84721684,142.39,142.31,3.13096311]
[1768527744029,3.07376926,142.38,142.31,3.13096311]
[1768527746932,3.07376926,142.38,142.32,3.02461162]
[1768527748431,3.07376926,142.38,142.32,9.34981162]
[1768527748641,3.07376926,142.38,142.33,3.02461162]
[1768527748839,3.0270137,142.4,142.33,3.02461162]
[1768527749939,3.0270137,142.4,142.34,9.34891162]
[1768527755452,5.2383168,142.4,142.34,9.34891162]
[1768527756448,3.0270137,142.4,142.34,9.34891162]
[1768527756646,5.2383168,142.4,142.34,9.34891162]
[1768527765555,3.0270137,142.39,142.32,3.02461162]
[1768527766756,3.0270137,142.39,142.33,6.3248]
[1768527767455,3.0270137,142.39,142.33,9.34941162]
[1768527767946,3.0270137,142.39,142.34,3.02461162]
[1768527773463,3.0270137,142.39,142.34,9.34901162]
[1768527782266,2.21152546,142.4,142.34,9.34901162]
[1768527782666,5.28844399,142.4,142.34,9.34901162]
[1768527784265,5.28844399,142.4,142.35,9.50778497]
[1768527786770,5.28844399,142.4,142.36,6.3235]
[1768527799776,5.28844399,142.42,142.36,9.50738497]
[1768527799974,5.49606714,142.41,142.37,3.18388497]
[1768527800174,5.28844399,142.42,142.37,3.18388497]
[1768527800374,5.4960785,142.41,142.37,3.18388497]
[1768527800567,5.28844399,142.42,142.37,3.18388497]
[1768527800768,5.49615215,142.41,142.37,3.18388497]
[1768527801063,5.28844399,142.42,142.37,3.18388497]
[1768527801268,5.49650915,142.41,142.37,3.18388497]
[1768527801578,5.28844399,142.42,142.37,3.18388497]
[1768527801768,5.49660402,142.41,142.37,3.18388497]
[1768527801967,5.28844399,142.42,142.37,3.18388497]
[1768527802168,5.49660402,142.41,142.37,3.18388497]
[1768527802369,5.28844399,142.42,142.37,3.18388497]
[1768527802570,5.49668767,142.41,142.37,3.18388497]
[1768527802777,5.28844399,142.42,142.36,6.3235]
[1768527802970,5.49668767,142.41,142.36,6.3235]
[1768527803165,5.28844399,142.42,142.36,6.3235]
[1768527803369,5.49696179,142.41,142.36,6.3235]
[1768527803565,5.28844399,142.42,142.36,6.3235]
[1768527803775,5.49709659,142.41,142.36,6.3235]
[1768527803968,5.28844399,142.42,142.36,6.3235]
[1768527804171,5.49710325,142.41,142.36,6.3235]
[1768527804368,5.28844399,142.42,142.36,6.3235]
[1768527804576,5.49719199,142.41,142.36,6.3235]
[1768527804774,5.28844399,142.42,142.36,6.3235]
[1768527805075,5.49718063,142.41,142.36,6.3235]
[1768527805277,5.28844399,142.42,142.36,6.3235]
[1768527805472,5.49694622,142.41,142.36,6.3235]
[1768527805672,5.28844399,142.42,142.36,6.3235]
[1768527805872,5.49689881,142.41,142.36,6.3235]
[1768527806174,5.28844399,142.42,142.36,6.3235]
[1768527806374,5.49691239,142.41,142.36,9.42074511]
[1768527806571,5.28844399,142.42,142.36,9.42074511]
[1768527806772,5.49701072,142.41,142.36,9.42074511]
[1768527806974,5.28844399,142.42,142.36,9.42074511]
[1768527807173,5.49701072,142.41,142.36,9.42074511]
[1768527807379,5.28844399,142.42,142.36,9.42074511]
[1768527807680,5.49726258,142.41,142.36,9.42074511]
[1768527807880,5.28844399,142.42,142.36,9.42074511]
[1768527808082,5.49727616,142.41,142.36,9.42074511]
[1768527808280,5.28844399,142.42,142.36,9.42074511]
[1768527808581,5.49737759,142.41,142.36,9.42074511]
[1768527808777,5.28844399,142.42,142.36,9.42074511]
[1768527808976,5.49732331,142.41,142.36,9.42074511]
[1768527809176,5.28844399,142.42,142.36,9.42074511]
[1768527809379,5.49732331,142.41,142.36,9.42074511]
[1768527809570,5.28844399,142.42,142.36,9.42074511]
[1768527809775,5.49743518,142.41,142.36,9.42074511]
[1768527809974,5.28844399,142.42,142.36,9.42074511]
[1768527810179,5.49748947,142.41,142.36,9.42074511]
[1768527810376,5.28844399,142.42,142.36,9.42074511]
[1768527810575,5.49754815,142.41,142.36,9.42074511]
[1768527810776,5.28844399,142.42,142.36,9.42074511]
[1768527811077,5.49754815,142.41,142.36,9.42074511]
[1768527811277,5.28844399,142.42,142.36,9.42074511]
[1768527811478,5.49752951,142.41,142.36,9.42074511]
[1768527811678,5.28844399,142.42,142.36,9.42074511]
[1768527811881,5.49752951,142.41,142.36,9.42074511]
[1768527812078,5.28844399,142.42,142.36,9.42074511]
[1768527812286,5.49747522,142.41,142.36,9.42074511]
[1768527812487,5.28844399,142.42,142.36,9.42074511]
[1768527812685,5.49746369,142.41,142.36,9.42074511]
[1768527812886,5.28844399,142.42,142.36,9.42074511]
[1768527813087,5.49746369,142.41,142.36,9.42074511]
[1768527813286,5.28844399,142.42,142.36,9.42074511]
[1768527813475,5.49745418,142.41,142.36,9.42074511]
[1768527813680,5.28844399,142.42,142.36,9.42074511]
[1768527813889,5.49745418,142.41,142.36,9.42074511]
[1768527814080,5.28844399,142.42,142.36,9.42074511]
[1768527814280,5.49745418,142.41,142.36,9.42074511]
[1768527814575,5.28844399,142.42,142.36,9.42074511]
[1768527814782,5.49751047,142.41,142.36,9.42074511]
[1768527814982,5.28844399,142.42,142.36,9.42074511]
[1768527815292,5.49751047,142.41,142.36,9.42074511]
[1768527815484,5.28844399,142.42,142.37,6.3231]
[1768527815682,5.49752723,142.41,142.37,6.3231]
[1768527815989,5.28844399,142.42,142.37,6.3231]
[1768527816190,5.49756287,142.41,142.37,6.3231]
[1768527816486,5.28844399,142.42,142.37,6.3231]
[1768527816687,5.49748788,142.41,142.37,6.3231]
[1768527816882,5.28844399,142.42,142.37,6.3231]
[1768527817083,5.49748788,142.41,142.37,6.3231]
[1768527817386,3.07691853,142.42,142.37,6.3231]
[1768527817585,5.49751401,142.41,142.37,6.3231]
[1768527817785,3.07691853,142.42,142.37,6.3231]
[1768527817989,5.49756829,142.41,142.37,6.3231]
[1768527818180,3.07691853,142.42,142.37,6.3231]
[1768527818381,5.49756829,142.41,142.37,6.3231]
[1768527818581,3.07691853,142.42,142.37,6.3231]
[1768527818782,5.49758188,142.41,142.37,6.3231]
[1768527818982,3.07691853,142.42,142.37,6.3231]
[1768527819277,5.49758188,142.41,142.37,6.3231]
[1768527819476,3.07691853,142.42,142.37,6.3231]
[1768527819681,5.49761222,142.41,142.37,6.3231]
[1768527819888,3.07691853,142.42,142.37,6.3231]
[1768527820080,5.49840113,142.41,142.37,6.3231]
[1768527820279,3.07691853,142.42,142.37,6.3231]
[1768527820489,5.49844866,142.41,142.37,6.3231]
[1768527820680,3.07691853,142.42,142.37,6.3231]
[1768527820881,5.49844866,142.41,142.37,9.42034511]
[1768527821081,3.07691853,142.42,142.37,9.42034511]
[1768527821287,5.49846233,142.41,142.37,9.42034511]
[1768527821584,3.07691853,142.42,142.37,9.42034511]
[1768527821785,5.4987823,142.41,142.37,9.42034511]
[1768527821987,3.07691853,142.42,142.37,9.42034511]
[1768527822186,5.49883992,142.41,142.37,9.42034511]
[1768527822388,3.07691853,142.42,142.37,9.42034511]
[1768527822587,5.49892444,142.41,142.37,9.42034511]
[1768527822790,3.07691853,142.42,142.37,9.42034511]
[1768527822989,5.49892444,142.41,142.37,9.42034511]
[1768527823189,3.07691853,142.42,142.37,9.42034511]
[1768527823388,5.49892444,142.41,142.37,9.42034511]
[1768527823590,3.07691853,142.42,142.37,9.42034511]
[1768527823789,5.49902676,142.41,142.37,9.42034511]
[1768527823990,3.07691853,142.42,142.37,9.42034511]
[1768527824291,5.49902676,142.41,142.37,9.42034511]
[1768527824488,3.07691853,142.42,142.37,9.42034511]
[1768527824690,5.49915102,142.41,142.37,9.42034511]
[1768527824890,3.07691853,142.42,142.37,9.42034511]
[1768527825189,5.49915102,142.41,142.37,9.42034511]
[1768527825384,3.07691853,142.42,142.37,9.42034511]
[1768527825586,5.49914323,142.41,142.37,9.42034511]
[1768527825886,3.07691853,142.42,142.37,9.42034511]
[1768527826086,5.49916012,142.41,142.37,9.42034511]
[1768527826387,3.07691853,142.42,142.37,9.42034511]
[1768527826686,5.4991579,142.41,142.37,9.42034511]
[1768527826883,3.07691853,142.42,142.37,9.42034511]
[1768527827083,5.49931443,142.41,142.37,9.42034511]
[1768527827279,3.07691853,142.42,142.37,9.42034511]
[1768527827487,5.50004601,142.41,142.37,9.42034511]
[1768527827785,3.07691853,142.42,142.37,9.42034511]
[1768527827984,5.50042008,142.41,142.37,9.42034511]
[1768527828282,3.07691853,142.42,142.37,9.42034511]
[1768527828479,5.50069085,142.41,142.37,9.42034511]
[1768527828686,3.07691853,142.42,142.37,9.42034511]
[1768527828887,5.50069085,142.41,142.37,9.42034511]
[1768527829087,3.07691853,142.42,142.37,9.42034511]
[1768527829287,5.50069085,142.41,142.37,9.42034511]
[1768527829479,3.07691853,142.42,142.37,9.42034511]
[1768527829680,5.50074545,142.41,142.37,9.42034511]
[1768527829887,3.07691853,142.42,142.37,9.42034511]
[1768527830089,5.50073408,142.41,142.37,9.42034511]
[1768527830296,3.07691853,142.42,142.37,9.42034511]
[1768527830489,5.50076127,142.41,142.37,9.42034511]
[1768527830689,3.07691853,142.42,142.37,9.42034511]
[1768527830991,5.50076127,142.41,142.37,9.42034511]
[1768527831190,3.07691853,142.42,142.37,9.42034511]
[1768527831390,5.50076127,142.41,142.37,9.42034511]
[1768527831592,3.07691853,142.42,142.37,9.42034511]
[1768527831784,5.50052174,142.41,142.37,6.3231]
[1768527831987,3.07691853,142.42,142.37,6.3231]
[1768527832186,5.50027862,142.41,142.37,6.3231]
[1768527832388,3.07691853,142.42,142.37,6.3231]
[1768527832591,5.50032481,142.41,142.37,6.3231]
[1768527832791,3.07691853,142.42,142.35,3.17679031]
[1768527832985,8.7282722,142.41,142.35,3.17679031]
[1768527833189,3.22794739,142.41,142.35,3.17679031]
[1768527834798,3.22794739,142.41,142.37,6.323]
[1768527840813,3.22794739,142.41,142.36,3.17679031]
[1768527843316,3.22794739,142.41,142.36,9.50029031]
[1768527851123,3.22794739,142.41,142.34,9.50079031]
[1768527851424,3.22794739,142.39,142.34,3.17679031]
[1768527854022,3.22794739,142.39,142.33,6.3248]
[1768527854327,3.22794739,142.39,142.33,9.50159031]
[1768527859330,3.22794739,142.39,142.34,6.3244]
[1768527859830,3.22794739,142.39,142.34,9.50119031]
[1768527887044,11.72446201,142.41,142.34,9.50119031]
[1768527887346,3.19146931,142.43,142.36,3.06705299]
[1768527887545,5.49335678,142.42,142.36,3.06705299]
[1768527887745,5.40296201,142.43,142.36,3.06705299]
[1768527888848,11.72336201,142.43,142.36,9.39045299]
[1768527889244,11.72336201,142.43,142.37,3.06705299]
[1768527890149,5.40296201,142.43,142.37,3.06705299]
[1768527890643,5.40296201,142.4,142.35,3.06705299]
[1768527893350,3.20879621,142.44,142.36,3.13311798]
[1768527893548,10.91370891,142.43,142.36,3.13311798]
[1768527893747,5.42028891,142.43,142.36,3.13311798]
[1768527894748,11.74078891,142.43,142.36,9.45651798]
[1768527902259,11.74078891,142.43,142.37,3.13311798]
[1768527904360,9.52929621,142.43,142.37,3.13311798]
[1768527904554,5.42028891,142.43,142.37,3.13311798]
[1768527905662,3.20879621,142.42,142.37,3.13311798]
[1768527906050,2.2114927,142.41,142.37,3.13311798]
[1768527914970,2.2114927,142.41,142.33,6.3245]
[1768527915174,3.20879621,142.4,142.35,3.13311798]
[1768527924683,9.53059621,142.4,142.35,3.13311798]
[1768527931298,11.8748855,142.39,142.33,3.22964533]
[1768527931497,3.3410928,142.38,142.33,3.22964533]
[1768527934695,8.5340927,142.39,142.33,3.22964533]
[1768527939304,6.3226,142.39,142.33,3.22964533]
[1768527946905,9.6636928,142.39,142.33,3.22964533]
[1768527950212,9.6636928,142.39,142.33,9.55444533]
[1768527950815,9.6625928,142.41,142.34,3.22964533]
[1768527951008,9.6625928,142.41,142.35,3.18288536]
[1768527953814,3.07808069,142.4,142.35,3.18288536]
[1768527956220,3.07808069,142.4,142.35,9.50678536]
[1768527956520,3.07808069,142.42,142.36,3.18288536]
[1768527957424,3.07808069,142.42,142.37,3.18288536]
[1768527958416,3.45564349,142.44,142.38,3.18288536]
[1768527958619,9.39788069,142.45,142.38,3.18288536]
[1768527959322,3.07808069,142.45,142.39,3.18288536]
[1768527960022,6.3188,142.47,142.41,3.18288536]
[1768527960023,3.07808069,142.47,142.41,3.18288536]
[1768527960625,3.07808069,142.47,142.42,3.18288536]
[1768527962320,3.07808069,142.49,142.43,3.18288536]
[1768527964724,3.07808069,142.49,142.44,3.18288536]
[1768527965225,3.07808069,142.49,142.44,9.50278536]
[1768527965922,3.07808069,142.51,142.45,3.18288536]
[1768527967927,3.07808069,142.51,142.44,6.3199]
[1768527968727,3.07808069,142.51,142.44,9.50278536]
[1768527970029,3.07808069,142.51,142.45,3.18288536]
[1768527973626,3.07808069,142.51,142.44,6.3199]
[1768527974937,3.07808069,142.51,142.43,3.18288536]
[1768527975140,3.07808069,142.5,142.43,3.18288536]
[1768527977338,9.39548069,142.5,142.43,3.18288536]
[1768527980241,3.07808069,142.49,142.43,3.18288536]
[1768527992754,9.39588069,142.49,142.43,3.18288536]
[1768527994258,3.07808069,142.49,142.44,3.26224859]
[1768527994460,9.49331985,142.51,142.44,3.26224859]
[1768527995759,9.49331985,142.51,142.45,3.26224859]
[1768527998861,3.17611985,142.51,142.45,3.26224859]
[1768527999064,3.17611985,142.51,142.46,3.26224859]
[1768527999862,9.49251985,142.53,142.47,3.26224859]
[1768528006571,3.17611985,142.52,142.47,3.26224859]
[1768528016574,8.5235299,142.53,142.47,3.26224859]
[1768528016973,11.85504273,142.53,142.47,3.26224859]
[1768528017374,6.3164,142.53,142.47,3.26224859]
[1768528017571,6.3156,142.54,142.48,3.18776087]
[1768528017874,9.64711283,142.54,142.48,3.18776087]
[1768528018380,11.85424273,142.54,142.48,3.18776087]
[1768528018974,3.33151283,142.52,142.46,3.18776087]
[1768528020078,5.53864273,142.52,142.46,3.18776087]
[1768528020676,3.33151283,142.51,142.46,3.18776087]
[1768528020880,3.33151283,142.49,142.42,3.18776087]
[1768528021183,5.53864273,142.48,142.42,3.18776087]
[1768528024486,11.85704273,142.48,142.42,3.18776087]
[1768528024682,3.33151283,142.47,142.42,3.18776087]
[1768528024884,5.53864273,142.46,142.4,3.18776087]
[1768528025079,98.2671,142.51,142.4,3.18776087]
[1768528025080,2.2071299,142.44,142.4,3.18776087]
[1768528026386,2.2071299,142.44,142.38,3.18776087]
[1768528030394,3.33151283,142.43,142.38,3.18776087]
[1768528030594,2.2071299,142.42,142.38,3.18776087]
[1768528033197,3.33151283,142.43,142.38,3.18776087]
[1768528033398,2.2071299,142.42,142.38,3.18776087]
[1768528033697,6.3201,142.44,142.38,3.18776087]
[1768528033904,2.2071299,142.43,142.38,3.18776087]
[1768528035595,5.53864273,142.47,142.38,3.18776087]
[1768528036793,5.53864273,142.47,142.4,3.18776087]
[1768528038502,2.2071299,142.47,142.4,3.18776087]
[1768528041103,5.31219927,142.47,142.4,3.18776087]
[1768528043507,3.10506937,142.46,142.4,3.18776087]
[1768528047911,5.26857862,142.45,142.39,6.3221]
[1768528048305,3.06144872,142.44,142.39,6.3221]
[1768528048706,6.3187,142.47,142.34,100.5820299]
[1768528048707,2.2071299,142.43,142.37,6.3229]
[1768528049011,5.26857862,142.43,142.37,6.3229]
[1768528049313,5.26857862,142.46,142.41,3.31529958]
[1768528049812,3.06144872,142.46,142.41,3.31529958]
[1768528053912,5.26857862,142.45,142.39,3.31529958]
[1768528054815,5.26857862,142.45,142.39,9.63729958]
[1768528055216,3.06144872,142.44,142.39,9.63729958]
[1768528058210,2.2071299,142.45,142.39,9.63729958]
[1768528059822,2.2071299,142.45,142.4,3.31529958]
[1768528060019,2.2071299,142.45,142.4,9.63689958]
[1768528060323,5.26857862,142.47,142.4,9.63689958]
[1768528061221,5.26857862,142.47,142.41,3.31529958]
[1768528061421,5.26857862,142.47,142.42,3.31529958]
[1768528062717,2.2071299,142.47,142.42,3.31529958]
[1768528062921,2.2071299,142.47,142.42,9.63589958]
[1768528063119,2.2071299,142.47,142.43,3.31529958]
[1768528063516,5.26857862,142.49,142.43,3.31529958]
[1768528064014,3.06144872,142.49,142.43,3.31529958]
[1768528075430,3.06144872,142.49,142.43,9.63569958]
[1768528076131,3.06144872,142.49,142.44,3.15072926]
[1768528080427,3.17618026,142.51,142.45,3.15072926]
[1768528080735,3.17618026,142.51,142.42,3.15072926]
[1768528081831,3.17618026,142.51,142.44,6.3199]
[1768528084435,3.17618026,142.51,142.44,9.47062926]
[1768528085132,3.17618026,142.49,142.42,3.15072926]
[1768528085645,3.17618026,142.48,142.42,3.15072926]
[1768528086845,3.17618026,142.48,142.43,6.3204]
[1768528092050,3.17618026,142.48,142.42,3.15072926]
[1768528094653,3.17618026,142.48,142.4,3.15072926]
[1768528095844,3.17618026,142.47,142.4,3.15072926]
[1768528098550,9.49488026,142.47,142.4,3.15072926]
[1768528103849,3.18151062,142.46,142.4,3.15072926]
[1768528117256,3.18151062,142.46,142.4,9.47242926]
[1768528117563,3.09724701,142.48,142.41,3.26088793]
[1768528119260,3.09724701,142.48,142.42,3.26088793]
[1768528120356,3.09724701,142.5,142.43,6.3203]
[1768528120557,3.09724701,142.5,142.44,3.26088793]
[1768528121759,3.09724701,142.5,142.44,9.58068793]
[1768528121964,3.09724701,142.5,142.45,3.26088793]
[1768528123762,3.09724701,142.5,142.45,9.58038793]
[1768528135681,5.30511102,142.5,142.45,9.58038793]
[1768528137185,5.30511102,142.5,142.46,6.3191]
[1768528138283,2.20786401,142.5,142.46,6.3191]
[1768528138890,2.20786401,142.5,142.46,9.39076926]
[1768528139789,5.53501583,142.52,142.46,9.39076926]
[1768528141891,3.32715182,142.51,142.46,9.39076926]
[1768528142394,3.32715182,142.51,142.46,6.3191]
[1768528145495,3.32715182,142.49,142.43,6.3201]
[1768528145686,3.32715182,142.49,142.42,3.07166926]
[1768528146894,3.32715182,142.49,142.44,6.3199]
[1768528154095,2.20786401,142.5,142.45,9.39096926]
[1768528154301,2.20786401,142.5,142.46,3.07166926]
[1768528155298,3.32715182,142.51,142.46,3.07166926]
[1768528155500,3.32715182,142.54,142.46,9.39066926]
[1768528155704,5.53501583,142.53,142.47,3.07166926]
[1768528156803,5.53501583,142.53,142.48,6.3181]
[1768528159000,3.32715182,142.55,142.49,9.38926926]
[1768528171510,3.32715182,142.55,142.5,3.0946201]
[1768528179318,3.32715182,142.55,142.5,9.4119201]
[1768528184017,3.07483005,142.58,142.51,9.4112201]
[1768528184812,3.07483005,142.57,142.51,9.4112201]
[1768528188921,3.07483005,142.57,142.51,6.3166]
[1768528189124,3.07483005,142.57,142.49,3.0946201]
[1768528190922,3.07483005,142.56,142.5,6.3173]
[1768528191518,3.07483005,142.56,142.5,9.5267986]
[1768528197418,6.52268615,142.56,142.5,9.5267986]
[1768528197922,6.52268615,142.56,142.5,3.2094986]
[1768528200718,5.45884436,142.55,142.5,3.2094986]
[1768528200919,6.52268615,142.56,142.5,3.2094986]
[1768528202431,3.4478561,142.56,142.5,3.2094986]
[1768528203929,3.24494478,142.55,142.49,9.5271986]
[1768528204317,3.24494478,142.55,142.5,3.2094986]
[1768528204522,13.00750088,142.56,142.5,3.2094986]
[1768528207933,5.46177591,142.55,142.5,3.2094986]
[1768528208133,13.00750088,142.56,142.5,3.2094986]
[1768528208430,5.46189481,142.55,142.5,3.2094986]
[1768528208633,13.00750088,142.56,142.5,3.2094986]
[1768528208822,5.46188181,142.55,142.5,3.2094986]
[1768528209134,13.00750088,142.56,142.5,3.2094986]
[1768528209328,5.46188181,142.55,142.5,3.2094986]
[1768528209527,13.00750088,142.56,142.5,3.2094986]
[1768528210131,3.24494478,142.55,142.5,3.2094986]
[1768528216040,9.7625561,142.56,142.5,3.2094986]
[1768528216236,5.46194416,142.55,142.5,3.2094986]
[1768528216541,13.00750088,142.56,142.5,3.2094986]
[1768528216735,5.46195452,142.55,142.5,3.2094986]
[1768528216935,13.00750088,142.56,142.5,3.2094986]
[1768528217138,5.46183563,142.55,142.5,3.2094986]
[1768528217434,13.00750088,142.56,142.5,3.2094986]
[1768528217626,5.46190231,142.55,142.5,3.2094986]
[1768528217825,13.00750088,142.56,142.5,3.2094986]
[1768528223152,9.55964478,142.56,142.5,3.2094986]
[1768528223942,9.40063431,142.58,142.51,3.11884536]
[1768528224146,5.4611837,142.57,142.51,3.11884536]
[1768528224351,9.40063431,142.58,142.51,3.11884536]
[1768528224553,5.46084343,142.57,142.51,3.11884536]
[1768528224852,9.40063431,142.58,142.52,3.11884536]
[1768528225048,5.46084343,142.57,142.52,3.11884536]
[1768528225253,9.40063431,142.58,142.52,3.11884536]
[1768528225454,5.46079162,142.57,142.52,3.11884536]
[1768528225647,9.40063431,142.58,142.52,3.11884536]
[1768528225842,5.46054394,142.57,142.52,3.11884536]
[1768528226046,9.40063431,142.58,142.52,3.11884536]
[1768528226346,5.46054394,142.57,142.52,3.11884536]
[1768528226548,9.40063431,142.58,142.52,3.11884536]
[1768528226749,5.46027412,142.57,142.52,3.11884536]
[1768528226949,9.40063431,142.58,142.52,3.11884536]
[1768528227148,5.46027412,142.57,142.52,3.11884536]
[1768528227447,9.40063431,142.58,142.52,3.11884536]
[1768528227652,5.46010034,142.57,142.52,3.11884536]
[1768528227852,9.40063431,142.58,142.52,3.11884536]
[1768528228056,5.46010034,142.57,142.52,3.11884536]
[1768528228256,9.40063431,142.58,142.52,3.11884536]
[1768528228450,5.45995714,142.57,142.52,3.11884536]
[1768528228650,9.40063431,142.58,142.52,3.11884536]
[1768528228852,5.45995714,142.57,142.52,3.11884536]
[1768528229053,9.40063431,142.58,142.52,3.11884536]
[1768528229246,5.45995714,142.57,142.52,3.11884536]
[1768528229454,9.40063431,142.58,142.52,3.11884536]
[1768528229654,5.45982036,142.57,142.52,3.11884536]
[1768528229855,9.40063431,142.58,142.52,3.11884536]
[1768528230054,5.45982036,142.57,142.52,3.11884536]
[1768528230251,9.40063431,142.58,142.52,3.11884536]
[1768528230451,5.45968856,142.57,142.52,3.11884536]
[1768528230651,9.40063431,142.58,142.52,3.11884536]
[1768528230855,5.45968856,142.57,142.52,3.11884536]
[1768528231055,9.40063431,142.58,142.52,3.11884536]
[1768528231258,5.45968856,142.57,142.52,3.11884536]
[1768528231554,9.40063431,142.58,142.52,3.11884536]
[1768528231752,5.45957447,142.57,142.52,3.11884536]
[1768528231955,9.40063431,142.58,142.52,3.11884536]
[1768528232154,5.45957447,142.57,142.52,3.11884536]
[1768528232346,9.40063431,142.58,142.52,3.11884536]
[1768528232550,5.45944556,142.57,142.52,3.11884536]
[1768528232751,9.40063431,142.58,142.52,3.11884536]
[1768528232950,5.45944556,142.57,142.52,3.11884536]
[1768528233162,9.40063431,142.58,142.52,3.11884536]
[1768528233354,5.45942893,142.57,142.52,3.11884536]
[1768528233555,9.40063431,142.58,142.52,3.11884536]
[1768528233754,5.45932117,142.57,142.52,3.11884536]
[1768528233955,9.40063431,142.58,142.52,3.11884536]
[1768528234155,5.45932117,142.57,142.52,3.11884536]
[1768528234357,9.40063431,142.58,142.52,3.11884536]
[1768528234657,5.45916658,142.57,142.52,3.11884536]
[1768528234962,9.40063431,142.58,142.52,3.11884536]
[1768528235162,5.45916658,142.57,142.52,3.11884536]
[1768528235358,3.2724472,142.57,142.52,3.11884536]
[1768528238264,3.2724472,142.57,142.5,9.55886308]
[1768528240364,3.2724472,142.57,142.51,3.24156308]